bitfinex/quotes_SOLUSD_20250616
["timestamp","ask_amount","ask_price","bid_price","bid_amount"]
[1750117334428,38.65859226,152.35,152.31,6.56555708]
[1750117335213,28.7,152.35,152.31,32.93804205]
[1750117335518,28.7,152.35,152.32,9.95859226]
[1750117336010,7.5295,152.36,152.32,9.95859226]
[1750117336210,46.16809226,152.36,152.31,32.93804205]
[1750117336395,9.95859226,152.35,152.31,16.41389271]
[1750117336601,9.95859226,152.34,152.29,16.52501159]
[1750117337115,38.63859226,152.34,152.3,9.95859226]
[1750117337409,28.68,152.34,152.31,9.95859226]
[1750117338308,28.68,152.34,152.29,22.98246765]
[1750117338509,28.68,152.34,152.32,6.56512605]
[1750117339910,38.63859226,152.34,152.32,6.56512605]
[1750117340111,38.63859226,152.34,152.29,26.37464058]
[1750117340112,9.95859226,152.33,152.29,6.9]
[1750117340311,0.28432314,152.33,152.29,6.9]
[1750117340497,0.28432314,152.33,152.3,6.56598818]
[1750117340693,9.95859226,152.32,152.3,6.56598818]
[1750117340890,38.63859226,152.31,152.3,6.56598818]
[1750117341094,28.68,152.31,152.3,6.56598818]
[1750117342620,26.0,152.34,152.3,16.52458044]
[1750117342913,54.68,152.34,152.3,16.52458044]
[1750117343117,54.68,152.34,152.31,9.95859226]
[1750117343620,54.68,152.34,152.3,32.93955089]
[1750117343823,9.95859226,152.31,152.3,6.56598818]
[1750117344124,28.66,152.31,152.27,6.5672818]
[1750117344421,9.95859226,152.28,152.25,6.9]
[1750117344593,38.61859226,152.27,152.26,6.56771312]
[1750117344825,28.66,152.27,152.26,6.56771312]
[1750117344992,38.61859226,152.27,152.25,13.46804124]
[1750117345195,9.95859226,152.26,152.25,13.46804124]
[1750117346524,44.4938154,152.26,152.21,6.56987057]
[1750117346725,9.95859226,152.22,152.21,6.56987057]
[1750117347024,28.66,152.22,152.21,6.56987057]
[1750117348714,28.66,152.22,152.19,6.57073395]
[1750117348917,38.61859226,152.22,152.19,6.57073395]
[1750117349213,9.95859226,152.21,152.19,6.57073395]
[1750117349420,28.66,152.22,152.19,6.57073395]
[1750117349715,38.61859226,152.22,152.19,6.57073395]
[1750117349912,28.66,152.22,152.19,6.57073395]
[1750117350120,28.66,152.22,152.19,22.99756882]
[1750117350622,28.66,152.22,152.19,32.95616108]
[1750117351013,28.66,152.22,152.19,22.99756882]
[1750117351315,28.66,152.22,152.19,6.57073395]
[1750117351633,38.61859226,152.22,152.19,6.57073395]
[1750117352132,35.95859226,152.2,152.12,6.9]
[1750117352395,26.0,152.22,152.17,9.95859226]
[1750117352505,28.66,152.21,152.17,9.95859226]
[1750117352832,28.66,152.22,152.21,6.56987057]
[1750117353027,28.66,152.24,152.21,16.85859226]
[1750117353199,28.66,152.24,152.21,6.9]
[1750117353806,38.61859226,152.24,152.21,6.9]
[1750117354228,9.95859226,152.22,152.21,6.9]
[1750117354411,26.0,152.22,152.21,6.9]
[1750117354614,35.95859226,152.22,152.21,6.9]
[1750117354816,26.0,152.22,152.21,6.9]
[1750117355032,35.95859226,152.22,152.21,6.9]
[1750117355332,26.28432314,152.22,152.12,16.43399211]
[1750117355520,9.95859226,152.19,152.14,9.95859226]
[1750117355704,28.66,152.18,152.14,9.95859226]
[1750117355907,38.61859226,152.18,152.14,9.95859226]
[1750117356334,38.61859226,152.18,152.13,16.81859226]
[1750117356734,38.61859226,152.18,152.13,6.86]
[1750117356938,28.66,152.18,152.14,16.53148564]
[1750117357156,28.66,152.18,152.14,6.57289338]
[1750117357740,28.66,152.18,152.16,9.95859226]
[1750117358159,0.42648471,152.24,152.15,9.95859226]
[1750117358160,28.66,152.19,152.15,9.95859226]
[1750117358546,28.66,152.19,152.14,23.00512684]
[1750117358867,28.66,152.18,152.15,9.95859226]
[1750117359051,28.66,152.18,152.16,6.57202944]
[1750117361147,9.95859226,152.17,152.15,6.57246138]
[1750117362071,9.95859226,152.16,152.13,13.43326588]
[1750117362385,9.95859226,152.14,152.13,6.86]
[1750117364471,9.95859226,152.14,152.13,13.43332544]
[1750117364873,28.66,152.15,152.13,13.43332544]
[1750117365193,28.64,152.16,152.14,9.95859226]
[1750117365358,28.64,152.16,152.13,39.82523131]
[1750117367786,28.64,152.16,152.13,29.86663905]
[1750117368089,28.64,152.16,152.13,39.82523131]
[1750117368762,9.95859226,152.17,152.13,29.86663905]
[1750117368962,28.64,152.16,152.13,39.82523131]
[1750117369491,9.95859226,152.21,152.15,9.95859226]
[1750117369699,16.21729226,152.22,152.17,9.95859226]
[1750117369871,28.64,152.2,152.17,9.95859226]
[1750117370384,28.64,152.2,152.16,9.95859226]
[1750117370592,6.2587,152.22,152.16,9.95859226]
[1750117370777,38.59859226,152.21,152.16,9.95859226]
[1750117371464,28.64,152.2,152.17,6.57159755]
[1750117371970,20.15344886,152.17,152.13,6.86]
[1750117372170,20.15344886,152.17,152.02,10.0]
[1750117372171,0.42648471,152.12,152.06,6.86]
[1750117372390,9.95859226,152.07,152.06,6.86]
[1750117372586,28.64,152.07,152.06,6.86]
[1750117373878,28.64,152.07,152.01,6.57841782]
[1750117373879,45.07379226,152.07,152.01,6.57841782]
[1750117374075,9.95859226,152.04,152.01,6.57841782]
[1750117374388,28.64,152.03,152.01,6.57841782]
[1750117374915,38.59859226,152.03,152.01,6.57841782]
[1750117375279,28.64,152.03,152.01,6.57841782]
[1750117375473,28.64,152.03,152.0,6.57894736]
[1750117375787,1.561,152.0,151.92,6.86]
[1750117376089,9.95859226,151.96,151.92,6.86]
[1750117376272,47.28964886,151.95,151.89,4.59150177]
[1750117376472,9.95859226,151.9,151.89,4.59150177]
[1750117376662,28.64,151.9,151.89,4.59150177]
[1750117376866,38.59859226,151.9,151.89,4.59150177]
[1750117377375,28.64,151.9,151.89,4.59150177]
[1750117377576,28.64,151.9,151.89,11.17521366]
[1750117377988,6.3318,151.96,151.89,21.13380592]
[1750117378173,28.64,151.95,151.89,11.17521366]
[1750117378369,28.64,151.95,151.91,9.95859226]
[1750117378570,38.59859226,151.95,151.92,6.86]
[1750117378787,15.49966419,151.93,151.92,6.86]
[1750117379090,28.64,151.95,151.92,6.86]
[1750117379297,15.49966419,151.93,151.92,6.86]
[1750117379790,15.49966419,151.93,151.92,13.44241179]
[1750117380166,28.64,151.95,151.89,11.17507915]
[1750117380370,15.49966419,151.92,151.89,11.17507915]
[1750117380670,28.64,151.91,151.89,26.67474334]
[1750117380877,15.49966419,151.97,151.9,15.49966419]
[1750117381073,1.561,152.0,151.94,15.49966419]
[1750117381292,44.13966419,151.99,151.95,6.86]
[1750117381495,15.49966419,151.99,151.95,6.86]
[1750117381699,28.64,151.98,151.96,6.58067912]
[1750117382697,17.06066419,152.0,151.96,6.58067912]
[1750117382872,28.66,151.99,151.96,6.58067912]
[1750117383670,15.49966419,152.03,151.98,15.49966419]
[1750117383875,28.66,152.02,151.98,15.49966419]
[1750117384107,28.66,152.02,151.96,6.58067912]
[1750117384108,15.49966419,152.04,151.99,15.49966419]
[1750117384314,28.66,152.03,152.0,15.49966419]
[1750117384506,28.66,152.03,152.01,15.49966419]
[1750117384797,27.66,152.03,152.02,6.84]
[1750117385417,28.66,152.04,152.02,6.84]
[1750117385575,28.66,152.05,152.02,22.33966419]
[1750117385771,28.66,152.05,152.03,6.57764914]
[1750117386581,178.3273876,152.09,152.03,6.57764914]
[1750117386582,28.64,152.08,152.04,15.49966419]
[1750117386906,28.64,152.08,152.03,6.57764914]
[1750117387398,15.49966419,152.07,152.03,6.57764914]
[1750117388110,15.49966419,152.07,152.03,22.07731333]
[1750117389701,28.64,152.08,152.03,6.57764914]
[1750117390008,15.49966419,152.07,152.03,22.07731333]
[1750117390409,15.49966419,152.07,152.03,6.57764914]
[1750117390583,15.49966419,152.05,152.03,6.57764914]
[1750117390891,15.49966419,152.04,152.02,13.41802118]
[1750117391502,28.64,152.05,152.03,15.49966419]
[1750117391681,7.7733,152.1,152.04,15.49966419]
[1750117391876,7.7733,152.1,152.02,29.86322575]
[1750117391877,44.13966419,152.09,152.02,29.86322575]
[1750117392078,7.7733,152.1,152.02,29.86322575]
[1750117392079,15.49966419,152.07,152.02,29.86322575]
[1750117392276,15.49966419,152.06,152.02,13.41802118]
[1750117392480,28.64,152.07,152.02,13.41802118]
[1750117392481,15.49966419,152.03,152.02,13.41802118]
[1750117392700,28.64,152.03,152.02,13.41802118]
[1750117393179,44.13966419,152.03,152.02,13.41802118]
[1750117393380,15.49966419,152.06,152.02,13.41802118]
[1750117393603,28.64,152.05,152.02,13.41802118]
[1750117393828,28.64,152.05,152.02,29.86322575]
[1750117394003,15.49966419,152.04,152.02,13.41802118]
[1750117394606,44.13966419,152.05,152.02,13.41802118]
[1750117394816,28.64,152.05,152.02,13.41802118]
[1750117395315,28.64,152.05,152.02,28.91768537]
[1750117395534,28.64,152.05,152.03,15.49966419]
[1750117395840,28.64,152.06,152.03,15.49966419]
[1750117396124,44.13966419,152.06,152.04,6.57721652]
[1750117396502,1.554,152.1,152.05,15.49966419]
[1750117396836,15.49966419,152.12,152.08,15.49966419]
[1750117397046,28.64,152.11,152.07,15.49966419]
[1750117397342,44.13966419,152.11,152.06,15.49966419]
[1750117397515,44.13966419,152.11,152.04,23.02025782]
[1750117397833,44.13966419,152.11,152.06,15.49966419]
[1750117398004,15.49966419,152.1,152.06,15.49966419]
[1750117398205,15.49966419,152.09,152.08,6.57548658]
[1750117398431,15.49966419,152.09,152.05,6.57678395]
[1750117398737,0.14216157,152.09,152.04,6.57715194]
[1750117398942,18.64964886,152.1,152.04,23.41124106]
[1750117398943,28.62,152.08,152.04,23.41124106]
[1750117399236,28.62,152.08,152.04,39.85428236]
[1750117399422,38.61408912,152.08,152.04,29.86019324]
[1750117399806,9.99408912,152.07,152.04,29.86019324]
[1750117400011,0.14216157,152.12,152.05,9.99408912]
[1750117400213,38.61408912,152.11,152.06,33.01131916]
[1750117400506,9.99408912,152.1,152.06,23.01723004]
[1750117400930,9.99408912,152.09,152.06,6.57635144]
[1750117401099,32.14546157,152.13,152.06,6.57635144]
[1750117401100,38.61408912,152.08,152.06,6.57635144]
[1750117401309,38.61408912,152.07,152.06,6.57635144]
[1750117401505,38.61408912,152.07,152.03,16.4433599]
[1750117401710,9.99408912,152.05,152.01,6.57851457]
[1750117401913,28.62,152.04,152.02,6.84]
[1750117402215,38.61408912,152.04,152.02,6.84]
[1750117402432,28.62,152.04,152.03,6.57764914]
[1750117403034,38.61408912,152.04,152.03,6.57764914]
[1750117403428,38.61408912,152.04,151.97,23.03055528]
[1750117403735,0.28432314,152.03,151.98,6.84]
[1750117403942,19.07613357,152.03,151.97,6.5802461]
[1750117404243,0.28432314,152.03,151.97,6.5802461]
[1750117404457,7.7979,152.05,151.97,6.5802461]
[1750117404612,28.62,152.04,151.97,23.03086135]
[1750117405117,28.62,152.04,152.0,9.99408912]
[1750117405712,38.61408912,152.04,151.99,9.99408912]
[1750117406045,9.99408912,152.02,152.0,6.84]
[1750117406340,28.62,152.01,151.97,65.92618097]
[1750117406506,28.62,152.01,151.97,33.02495047]
[1750117406710,28.62,152.01,151.98,6.84]
[1750117406953,7.7979,152.05,151.99,9.99408912]
[1750117407250,28.62,152.04,151.98,6.84]
[1750117407536,28.62,152.04,152.0,9.99408912]
[1750117407747,9.99408912,152.03,151.98,16.83408912]
[1750117407919,9.99408912,152.01,151.98,6.84]
[1750117408238,38.61408912,152.01,151.98,6.84]
[1750117408409,38.61408912,152.01,151.99,6.57938022]
[1750117409746,9.99408912,152.0,151.98,13.41974489]
[1750117409933,9.99408912,152.0,151.98,6.57974489]
[1750117409934,9.99408912,151.99,151.98,6.57974489]
[1750117410245,9.99408912,151.99,151.96,6.58067912]
[1750117410544,9.99408912,151.97,151.95,13.42100168]
[1750117410756,28.62,151.98,151.95,13.42100168]
[1750117410929,38.61408912,151.97,151.95,13.42100168]
[1750117411313,9.99408912,151.98,151.95,13.42100168]
[1750117411545,26.0,152.02,151.95,13.42100168]
[1750117411546,28.62,151.99,151.97,9.99408912]
[1750117411842,28.62,152.0,151.98,9.99408912]
[1750117412047,6.6026,152.04,151.99,9.99408912]
[1750117412354,28.62,152.04,152.02,9.99408912]
[1750117412516,16.59668912,152.09,152.03,39.85586113]
[1750117412712,28.62,152.06,152.04,9.99408912]
[1750117412935,28.62,152.06,152.04,15.46484511]
[1750117413325,28.62,152.06,152.05,15.46484511]
[1750117413532,6.6026,152.09,152.05,15.46484511]
[1750117413733,28.62,152.08,152.05,15.46484511]
[1750117413945,28.62,152.07,152.05,15.46484511]
[1750117414329,1.5919,152.1,152.06,15.46484511]
[1750117414660,1.5919,152.1,152.09,6.57505424]
[1750117414661,28.62,152.1,152.09,6.57505424]
[1750117414946,6.6026,152.13,152.09,38.47753496]
[1750117415165,15.46484511,152.14,152.09,38.47753496]
[1750117415326,28.62,152.12,152.09,38.47753496]
[1750117415852,28.62,152.12,152.1,22.28484511]
[1750117416432,17.05674511,152.15,152.11,23.00966405]
[1750117416741,21.88584511,152.18,152.13,15.46484511]
[1750117416929,28.62,152.17,152.13,15.46484511]
[1750117417353,21.88584511,152.18,152.14,15.46484511]
[1750117417661,22.03347919,152.24,152.11,23.00966405]
[1750117417662,6.5625,152.23,152.13,15.46484511]
[1750117417827,28.62,152.22,152.13,15.46484511]
[1750117418028,15.46484511,152.21,152.11,88.75156135]
[1750117418247,6.5625,152.23,152.15,15.46484511]
[1750117418248,15.46484511,152.2,152.15,15.46484511]
[1750117418461,15.46484511,152.18,152.11,23.00966405]
[1750117418624,15.46484511,152.16,152.11,23.00966405]
[1750117418958,15.46484511,152.13,152.11,6.57418973]
[1750117419159,28.62,152.15,152.11,22.03903484]
[1750117419522,44.08484511,152.15,152.11,6.57418973]
[1750117420132,15.46484511,152.14,152.11,6.57418973]
[1750117420738,28.62,152.15,152.1,6.57462195]
[1750117420923,15.46484511,152.14,152.1,6.57462195]
[1750117421125,44.08484511,152.15,152.1,22.03946706]
[1750117421349,28.62,152.15,152.1,22.03946706]
[1750117421549,28.62,152.15,152.11,15.46484511]
[1750117422161,44.08484511,152.15,152.11,15.46484511]
[1750117422657,44.08484511,152.15,152.12,6.57375755]
[1750117423032,44.64964886,152.19,152.12,6.57375755]
[1750117423237,15.46484511,152.16,152.12,22.03860266]
[1750117423540,15.46484511,152.15,152.12,6.57375755]
[1750117423725,44.06484511,152.14,152.12,6.57375755]
[1750117423925,28.6,152.13,152.12,6.57375755]
[1750117424746,28.6,152.13,152.11,6.57418973]
[1750117425454,15.46484511,152.12,152.11,6.57418973]
[1750117425835,44.06484511,152.12,152.11,6.57418973]
[1750117426849,44.06484511,152.12,152.09,23.01225802]
[1750117427237,15.46484511,152.11,152.09,23.01225802]
[1750117427628,28.6,152.12,152.09,23.01225802]
[1750117427832,44.06484511,152.12,152.09,23.01225802]
[1750117428063,15.46484511,152.13,152.09,23.01225802]
[1750117428235,15.46484511,152.13,152.09,38.47710313]
[1750117429062,15.46484511,152.11,152.09,23.01225802]
[1750117429263,15.46484511,152.11,152.09,55.88752924]
[1750117429966,15.46484511,152.1,152.09,55.88752924]
[1750117430558,15.46484511,152.1,152.09,23.01225802]
[1750117434448,28.6,152.14,152.09,23.01225802]
[1750117434769,51.21964345,152.21,152.12,26.0]
[1750117434770,15.46484511,152.16,152.12,26.0]
[1750117434956,6.5625,152.23,152.12,26.0]
[1750117434957,6.5625,152.23,152.14,26.0]
[1750117435271,6.5625,152.23,152.16,23.00210304]
[1750117435463,9.97814927,152.18,152.16,23.00210304]
[1750117435845,9.97814927,152.17,152.16,23.00210304]
[1750117436050,6.5625,152.23,152.16,23.00210304]
[1750117436267,9.97814927,152.17,152.16,23.00210304]
[1750117436562,9.97814927,152.17,152.14,6.57247469]
[1750117436764,9.97814927,152.15,152.11,6.82]
[1750117436945,15.4579477,152.12,152.11,6.82]
[1750117438677,15.4579477,152.12,152.11,13.39418973]
[1750117440551,15.4579477,152.12,152.11,6.82]
[1750117441073,15.4579477,152.12,152.11,13.39418973]
[1750117441264,15.4579477,152.12,152.1,6.57452266]
[1750117441460,18.64964886,152.1,152.05,6.82]
[1750117441672,18.64964886,152.1,151.97,32.90048132]
[1750117441673,15.4579477,152.06,152.0,23.02631578]
[1750117441852,15.4579477,152.01,152.0,23.02631578]
[1750117442368,15.4579477,152.01,151.99,6.82]
[1750117442573,15.4579477,152.0,151.97,6.58016377]
[1750117442751,15.4579477,151.98,151.97,6.58016377]
[1750117443070,15.4579477,151.98,151.94,23.03506584]
[1750117443278,15.4579477,151.95,151.94,23.03506584]
[1750117444352,15.4579477,151.96,151.94,23.03506584]
[1750117444568,15.4579477,151.95,151.94,23.03506584]
[1750117444949,15.4579477,151.97,151.94,55.94279257]
[1750117445150,15.4579477,151.95,151.94,23.03506584]
[1750117446458,15.4579477,151.96,151.94,55.94279257]
[1750117446653,6.577,152.05,151.95,15.60010927]
[1750117446880,15.4579477,152.03,151.98,15.4579477]
[1750117447183,15.4579477,152.04,152.0,23.02631578]
[1750117447388,15.4579477,152.04,152.01,6.8]
[1750117447679,15.4579477,152.02,152.01,6.8]
[1750117448582,15.4579477,152.02,152.0,55.92105262]
[1750117448583,15.4579477,152.02,152.0,6.57894736]
[1750117448758,15.4579477,152.01,152.0,6.57894736]
[1750117449355,15.4579477,152.01,151.99,6.57938022]
[1750117449556,15.4579477,152.0,151.99,6.57938022]
[1750117449994,28.58,152.03,151.99,6.57938022]
[1750117450178,15.4579477,152.0,151.99,6.57938022]
[1750117451100,15.4579477,152.0,151.98,6.8]
[1750117451262,15.4579477,151.99,151.98,6.8]
[1750117451458,44.0379477,151.99,151.98,13.37974638]
[1750117453570,15.4579477,151.99,151.98,13.37974638]
[1750117453864,149.1,152.08,151.98,29.82927921]
[1750117454072,15.4579477,152.01,151.98,29.82927921]
[1750117454269,149.1,152.08,151.98,29.82927921]
[1750117454482,15.4579477,152.02,151.98,29.82927921]
[1750117454885,15.4579477,152.02,151.98,62.72834487]
[1750117455270,28.58,152.07,151.98,62.72834487]
[1750117455468,15.4579477,152.03,151.98,78.18629257]
[1750117456197,15.4579477,152.03,151.99,15.4579477]
[1750117456565,15.4579477,152.03,151.98,78.18629257]
[1750117457395,15.4579477,152.02,151.98,78.18629257]
[1750117457891,28.58,152.06,151.98,78.18629257]
[1750117457892,15.4579477,152.03,151.98,78.18629257]
[1750117458112,15.4579477,152.04,152.0,15.4579477]
[1750117458397,15.4579477,152.03,151.99,15.60010927]
[1750117458703,15.4579477,152.03,152.0,23.02631578]
[1750117459297,28.58,152.06,151.98,6.8]
[1750117459298,15.4579477,152.01,151.98,6.8]
[1750117459474,15.4579477,151.99,151.98,13.3797061]
[1750117460284,15.4579477,151.99,151.98,6.8]
[1750117460788,15.4579477,151.99,151.98,13.37981313]
[1750117466480,15.4579477,151.99,151.93,23.03647406]
[1750117466481,23.4630477,151.99,151.93,23.03647406]
[1750117466799,23.4630477,151.99,151.93,6.58197854]
[1750117466800,15.4579477,151.94,151.93,6.58197854]
[1750117466976,44.0379477,151.94,151.93,6.58197854]
[1750117467295,44.0379477,151.94,151.91,6.8]
[1750117467495,15.4579477,151.92,151.91,13.38270882]
[1750117469297,8.0051,151.99,151.91,29.83982158]
[1750117469496,15.4579477,151.96,151.92,15.60010927]
[1750117469701,15.4579477,151.98,151.93,15.4579477]
[1750117469897,15.4579477,151.97,151.93,15.4579477]
[1750117470080,15.4579477,151.97,151.92,15.60010927]
[1750117470795,15.4579477,151.97,151.93,23.03692489]
[1750117471172,15.4579477,151.95,151.93,23.03692489]
[1750117471906,15.4579477,151.94,151.93,23.03692489]
[1750117472289,28.56,151.95,151.93,6.58197854]
[1750117472709,15.4579477,151.94,151.93,6.58197854]
[1750117473005,15.4579477,151.94,151.91,6.8]
[1750117473006,15.4579477,151.94,151.92,6.58241179]
[1750117473201,15.4579477,151.93,151.92,6.58241179]
[1750117473425,28.56,151.95,151.92,6.58241179]
[1750117473605,15.4579477,151.93,151.92,6.58241179]
[1750117479592,28.56,151.95,151.92,6.58241179]
[1750117479794,1.5421,151.99,151.92,23.03844127]
[1750117479995,15.4579477,151.98,151.93,15.4579477]
[1750117480503,15.4579477,151.98,151.92,23.03844127]
[1750117480504,15.4579477,151.99,151.94,15.4579477]
[1750117480682,15.4579477,152.0,151.95,15.4579477]
[1750117480885,10.00191833,152.0,151.95,10.00191833]
[1750117481093,10.00191833,151.99,151.96,23.03237693]
[1750117482107,7.8362,152.03,151.98,10.00191833]
[1750117482286,10.00191833,152.02,151.99,6.78]
[1750117482603,11.52461833,152.03,151.99,6.78]
[1750117482787,15.47372613,152.02,151.99,6.78]
[1750117483194,16.99642613,152.03,152.0,6.57894736]
[1750117483387,6.4086,152.07,152.0,23.02631578]
[1750117483591,15.47372613,152.03,152.0,23.02631578]
[1750117484903,15.47372613,152.04,152.0,38.50004191]
[1750117485108,15.47372613,152.05,152.0,71.39477875]
[1750117485500,34.9486,152.07,152.01,15.47372613]
[1750117485720,6.4086,152.07,152.01,15.47372613]
[1750117485887,15.47372613,152.09,152.05,15.47372613]
[1750117486085,15.47372613,152.1,152.06,22.25372613]
[1750117487096,15.47372613,152.1,152.07,6.57591898]
[1750117487306,6.1413,152.11,152.07,6.57591898]
[1750117487307,15.47372613,152.09,152.07,6.57591898]
[1750117487811,6.1413,152.11,152.07,6.57591898]
[1750117488016,15.47372613,152.09,152.07,6.57591898]
[1750117488602,6.1413,152.11,152.07,6.57591898]
[1750117488788,15.47372613,152.08,152.03,6.78]
[1750117488986,15.47372613,152.05,152.03,6.78]
[1750117489211,44.01372613,152.06,152.03,6.78]
[1750117489385,15.47372613,152.05,152.03,6.78]
[1750117489589,15.47372613,152.04,152.03,6.78]
[1750117490811,15.47372613,152.04,152.03,13.35764914]
[1750117492021,15.47372613,152.06,152.03,29.80177201]
[1750117492214,15.47372613,152.05,152.03,29.80177201]
[1750117492919,15.47372613,152.06,152.03,29.80177201]
[1750117493825,28.52,152.08,152.04,15.47372613]
[1750117494114,15.47372613,152.09,152.04,15.47372613]
[1750117494312,43.99372613,152.09,152.04,15.47372613]
[1750117494486,43.99372613,152.09,152.03,62.69001775]
[1750117494688,15.47372613,152.08,152.04,15.47372613]
[1750117494918,15.47372613,152.08,152.05,23.01874383]
[1750117495722,43.99372613,152.09,152.05,23.01874383]
[1750117496301,15.47372613,152.09,152.05,22.01874383]
[1750117496802,15.47372613,152.1,152.05,37.49246996]
[1750117496995,15.47372613,152.09,152.05,37.49246996]
[1750117497602,15.47372613,152.09,152.05,22.01874383]
[1750117497921,15.47372613,152.1,152.05,37.49246996]
[1750117498126,15.47372613,152.06,152.05,5.57678395]
[1750117498305,43.97372613,152.06,152.05,5.57678395]
[1750117498896,43.97372613,152.06,152.04,6.57721652]
[1750117499096,15.47372613,152.05,152.04,6.57721652]
[1750117499297,17.02692613,152.05,152.04,6.57721652]
[1750117500417,17.02692613,152.05,152.03,6.78]
[1750117500727,18.64964886,152.03,151.98,6.57981313]
[1750117501031,6.5545,152.04,151.98,23.02934596]
[1750117501324,15.47372613,152.0,151.98,23.02934596]
[1750117501537,15.47372613,152.03,151.98,38.50307209]
[1750117501743,28.5,152.03,151.99,15.47372613]
[1750117502039,43.97372613,152.03,151.99,15.47372613]
[1750117502195,15.47372613,152.0,151.98,23.02934596]
[1750117502512,15.47372613,152.01,151.98,23.02934596]
[1750117502710,28.5,152.03,151.98,23.02934596]
[1750117503028,10.00124608,151.99,151.98,23.02934596]
[1750117503198,10.00124608,152.0,151.98,23.02934596]
[1750117503515,28.5,152.03,151.98,23.02934596]
[1750117503719,11.55444608,152.05,152.0,10.00124608]
[1750117503904,28.5,152.04,152.0,10.00124608]
[1750117504101,10.00124608,152.02,151.98,23.02934596]
[1750117504425,10.00124608,152.03,151.98,33.03059204]
[1750117504597,10.00124608,152.05,152.01,10.00124608]
[1750117504799,6.2504,152.08,152.01,10.00124608]
[1750117504800,38.50124608,152.06,152.01,10.00124608]
[1750117504994,10.00124608,152.05,152.0,10.00124608]
[1750117505219,10.00124608,152.04,151.99,0.14216157]
[1750117505422,38.50124608,152.05,151.98,55.92841162]
[1750117505595,10.00124608,152.02,151.98,65.9296577]
[1750117506022,10.00124608,152.01,151.98,55.92841162]
[1750117506228,10.00124608,152.01,151.98,23.02934596]
[1750117506431,10.00124608,152.02,151.98,23.02934596]
[1750117506835,26.0,152.07,151.99,15.47142001]
[1750117506998,6.2504,152.08,152.01,23.02480099]
[1750117506999,15.47142001,152.04,152.01,23.02480099]
[1750117507199,6.2504,152.08,152.01,38.496221]
[1750117507551,15.47142001,152.06,152.01,55.91737384]
[1750117507709,15.47142001,152.04,152.01,23.02480099]
[1750117507900,15.47142001,152.04,152.02,6.74]
[1750117507901,28.5,152.04,152.02,6.74]
[1750117508103,15.47142001,152.03,152.02,6.74]
[1750117508722,6.2504,152.08,152.02,6.74]
[1750117508927,15.47142001,152.06,152.03,23.02177201]
[1750117509118,15.47142001,152.05,152.03,23.02177201]
[1750117509431,6.2504,152.08,152.03,23.02177201]
[1750117509628,15.47142001,152.05,152.03,23.02177201]
[1750117510021,15.47142001,152.06,152.03,23.02177201]
[1750117510206,15.47142001,152.05,152.03,23.02177201]
[1750117510622,15.47142001,152.04,152.03,23.02177201]
[1750117511015,15.47142001,152.04,152.03,6.57764914]
[1750117511429,6.2504,152.08,152.03,23.02177201]
[1750117511622,15.47142001,152.07,152.03,23.02177201]
[1750117512335,15.47142001,152.06,152.03,23.02177201]
[1750117512628,15.47142001,152.06,152.03,55.91001775]
[1750117512842,34.7504,152.08,152.03,55.91001775]
[1750117513040,6.2191,152.12,152.06,15.47142001]
[1750117513333,21.69052001,152.12,152.07,15.47142001]
[1750117513548,15.47142001,152.11,152.06,15.47142001]
[1750117513859,15.47142001,152.09,152.04,15.47142001]
[1750117514061,15.47142001,152.07,152.03,55.91001775]
[1750117514239,15.47142001,152.04,152.03,23.02177201]
[1750117514438,17.09642001,152.04,152.03,29.76177201]
[1750117515165,23.31552001,152.04,152.03,13.31764914]
[1750117515465,18.64964886,152.03,151.98,6.57981313]
[1750117515755,15.47142001,151.99,151.98,6.57981313]
[1750117515962,43.95142001,151.99,151.98,6.57981313]
[1750117516330,62.60106887,151.99,151.96,6.58033323]
[1750117516554,15.47142001,151.97,151.96,23.03203104]
[1750117516755,15.47142001,151.97,151.96,6.58033323]
[1750117516956,15.47142001,151.97,151.94,6.58154534]
[1750117517236,15.47142001,151.95,151.94,6.58154534]
[1750117517566,43.95142001,151.95,151.94,6.58154534]
[1750117518254,28.48,151.95,151.94,6.58154534]
[1750117518458,43.95142001,151.95,151.94,6.58154534]
[1750117519133,43.95142001,151.95,151.92,23.03844127]
[1750117519538,28.48,151.95,151.92,38.50986128]
[1750117519832,15.47142001,152.01,151.95,0.14216157]
[1750117520034,28.48,152.02,151.98,15.47142001]
[1750117520266,43.95142001,152.02,151.99,6.74]
[1750117520959,1.5033,152.04,151.99,6.74]
[1750117520960,43.95142001,152.03,151.99,6.74]